fUSD/lending_fUSD_20250512
["ID","MTS","AMOUNT","RATE_DAILY","PERIOD"]
[360872784,1747092640154,-164.47204855,0.00013698,2]
[360872785,1747092640164,-400.0,0.00013698,2]
[360872786,1747092640174,-400.0,0.00013698,2]
[360872787,1747092640183,-400.0,0.00013698,2]
[360872788,1747092640193,-400.0,0.00013698,2]
[360872789,1747092640202,-468.29395839,0.00013698,2]
[360872790,1747092640211,-400.0,0.00013698,2]
[360872791,1747092640221,-400.0,0.00013698,2]
[360872792,1747092640231,-400.0,0.00013698,2]
[360872793,1747092640240,-400.0,0.00013698,2]
[360872794,1747092640249,-400.0,0.00013698,2]
[360872795,1747092640258,-400.0,0.00013698,2]
[360872796,1747092640267,-292.67938911,0.00013698,2]
[360872797,1747092640277,-400.0,0.00013698,2]
[360872798,1747092640286,-190.35460395,0.00013698,2]
[360872799,1747092640298,-209.64539605,0.00013698,2]
[360872800,1747092640308,-172.89,0.00013698,2]
[360872801,1747092640318,-400.0,0.00013698,2]
[360872802,1747092640328,-400.0,0.00013698,2]
[360872803,1747092640337,-400.0,0.00013698,2]
[360872804,1747092640347,-404.27798344,0.00013698,2]
[360872805,1747092640356,-424.88,0.00013698,2]
[360872806,1747092640366,-400.0,0.00013698,2]
[360872807,1747092640378,-400.0,0.00013698,2]
[360872808,1747092640389,-400.0,0.00013698,2]
[360872809,1747092640399,-598.15,0.00013698,2]
[360872810,1747092640411,-400.0,0.00013698,2]
[360872811,1747092640420,-400.0,0.00013698,2]
[360872813,1747092640429,-400.0,0.00013698,2]
[360872815,1747092640438,-340.55,0.00013698,2]
[360872817,1747092640447,-400.0,0.00013698,2]
[360872819,1747092640456,-400.0,0.00013698,2]
[360872821,1747092640465,-403.38004692,0.00013698,2]
[360872823,1747092640475,-400.0,0.00013698,2]
[360872825,1747092640484,-797.05,0.00013698,2]
[360872826,1747092640493,-400.0,0.00013698,2]
[360872828,1747092640502,-400.0,0.00013698,2]
[360872830,1747092640511,-400.0,0.00013698,2]
[360872832,1747092640520,-400.0,0.00013698,2]
[360872834,1747092640530,-489.80778683,0.00013698,2]
[360872836,1747092640539,-400.0,0.00013698,2]
[360872838,1747092640549,-400.0,0.00013698,2]
[360872840,1747092640558,-400.0,0.00013698,2]
[360872841,1747092640567,-636.08,0.00013698,2]
[360872843,1747092640577,-774.23,0.00013698,2]
[360872845,1747092640586,-400.0,0.00013698,2]
[360872847,1747092640595,-400.0,0.00013698,2]
[360872849,1747092640604,-565.78,0.00013698,2]
[360872851,1747092640614,-400.0,0.00013698,2]
[360872852,1747092640623,-400.0,0.00013698,2]
[360872853,1747092640632,-400.0,0.00013698,2]
[360872855,1747092640641,-400.0,0.00013698,2]
[360872856,1747092640651,-500.0,0.00013698,2]
[360872857,1747092640660,-400.0,0.00013698,2]
[360872858,1747092640669,-400.0,0.00013698,2]
[360872859,1747092640679,-438.85,0.00013698,2]
[360872860,1747092640689,-400.0,0.00013698,2]
[360872861,1747092640702,-400.0,0.00013698,2]
[360872862,1747092640711,-500.0,0.00013698,2]
[360872863,1747092640721,-425.61560095,0.00013698,2]
[360872864,1747092640730,-400.0,0.00013698,2]
[360872865,1747092640739,-400.0,0.00013698,2]
[360872866,1747092640748,-400.0,0.00013698,2]
[360872867,1747092640758,-400.0,0.00013698,2]
[360872868,1747092640767,-400.0,0.00013698,2]
[360872869,1747092640776,-666.24,0.00013698,2]
[360872870,1747092640786,-400.0,0.00013698,2]
[360872871,1747092640795,-778.53,0.00013698,2]
[360872872,1747092640803,-107.53113087,0.00013698,2]
[360872873,1747092640830,-292.46886913,0.00013698,2]
[360872874,1747092640839,-400.0,0.00013698,2]
[360872875,1747092640848,-400.0,0.00013698,2]
[360872876,1747092640858,-400.0,0.00013698,2]
[360872877,1747092640866,-201.77556737,0.00013698,2]
[360872878,1747092640877,-198.22443263,0.00013698,2]
[360872879,1747092640887,-400.0,0.00013698,2]
[360872880,1747092641099,-414.22,0.00013698,2]
[360872881,1747092641109,-297.85404116,0.00013698,2]
[360872882,1747092641164,-102.14595884,0.00013698,2]
[360872883,1747092641174,-419.19133694,0.00013698,2]
[360872894,1747092643061,-283.51866306,0.00013698,2]
[360872895,1747092643070,-400.0,0.00013698,2]
[360872896,1747092643079,-400.0,0.00013698,2]
[360872897,1747092643088,-400.0,0.00013698,2]
[360872898,1747092643098,-1000.0,0.00013698,2]
[360872899,1747092643107,-400.0,0.00013698,2]
[360872900,1747092643116,-400.0,0.00013698,2]
[360872901,1747092643126,-400.0,0.00013698,2]
[360872902,1747092643135,-400.0,0.00013698,2]
[360872903,1747092643145,-400.0,0.00013698,2]
[360872904,1747092643154,-400.0,0.00013698,2]
[360872905,1747092643163,-400.0,0.00013698,2]
[360872906,1747092643172,-400.0,0.00013698,2]
[360872907,1747092643181,-400.0,0.00013698,2]
[360872908,1747092643191,-400.0,0.00013698,2]
[360872909,1747092643200,-400.0,0.00013698,2]
[360872910,1747092643209,-400.0,0.00013698,2]
[360872911,1747092643219,-662.74,0.00013698,2]
[360872912,1747092643228,-400.0,0.00013698,2]
[360872913,1747092643237,-400.0,0.00013698,2]
[360872914,1747092643247,-400.0,0.00013698,2]
[360872915,1747092643256,-230.20882951,0.00013698,2]
[360872916,1747092643268,-169.79117049,0.00013698,2]
[360872917,1747092643277,-400.0,0.00013698,2]
[360872918,1747092643287,-400.0,0.00013698,2]
[360872919,1747092643297,-400.0,0.00013698,2]
[360872920,1747092643306,-367.44,0.00013698,2]
[360872921,1747092643315,-362.90604878,0.00013698,2]
[360872922,1747092643324,-400.0,0.00013698,2]
[360872923,1747092643333,-400.0,0.00013698,2]
[360872924,1747092643343,-152.68445046,0.00013698,2]
[360872925,1747092643352,-400.0,0.00013698,2]
[360872926,1747092643367,-400.0,0.00013698,2]
[360872927,1747092643376,-400.0,0.00013698,2]
[360872928,1747092643385,-400.0,0.00013698,2]
[360872929,1747092643394,-400.0,0.00013698,2]
[360872930,1747092643404,-400.0,0.00013698,2]
[360872931,1747092643413,-400.0,0.00013698,2]
[360872932,1747092643422,-400.0,0.00013698,2]
[360872933,1747092643431,-400.0,0.00013698,2]
[360872934,1747092643440,-400.0,0.00013698,2]
[360872935,1747092643449,-892.99,0.00013698,2]
[360872936,1747092643458,-1238.19,0.00013698,2]
[360872938,1747092643467,-400.0,0.00013698,2]
[360872940,1747092643476,-400.0,0.00013698,2]
[360872942,1747092643485,-400.0,0.00013698,2]
[360872944,1747092643494,-614.18,0.00013698,2]
[360872945,1747092643503,-400.0,0.00013698,2]
[360872946,1747092643512,-400.0,0.00013698,2]
[360872947,1747092643522,-1338.67,0.00013698,2]
[360872948,1747092643532,-400.0,0.00013698,2]
[360872949,1747092643542,-400.0,0.00013698,2]
[360872950,1747092643552,-400.0,0.00013698,2]
[360872951,1747092643561,-240.71971029,0.00013698,2]
[360872952,1747092643571,-400.0,0.00013698,2]
[360872953,1747092643580,-858.41,0.00013698,2]
[360872954,1747092643590,-400.0,0.00013698,2]
[360872955,1747092643599,-400.0,0.00013698,2]
[360872956,1747092643608,-424.21756467,0.00013698,2]
[360872957,1747092643618,-283.0,0.00013698,2]
[360872960,1747092643627,-1380.06,0.00013698,2]
[360872961,1747092643636,-432.65211255,0.00013698,2]
[360872962,1747092643646,-400.0,0.00013698,2]
[360872963,1747092643655,-400.0,0.00013698,2]
[360872964,1747092643665,-2708.21,0.00013698,2]
[360872965,1747092643677,-400.0,0.00013698,2]
[360872966,1747092643687,-400.0,0.00013698,2]
[360872967,1747092643703,-400.0,0.00013698,2]
[360872968,1747092643712,-400.0,0.00013698,2]
[360872969,1747092643722,-400.0,0.00013698,2]
[360872970,1747092643732,-400.0,0.00013698,2]
[360872971,1747092643743,-1071.58,0.00013698,2]
[360872972,1747092643755,-400.0,0.00013698,2]
[360872973,1747092643764,-400.0,0.00013698,2]
[360872974,1747092643774,-400.0,0.00013698,2]
[360872975,1747092643783,-400.0,0.00013698,2]
[360872976,1747092643792,-400.0,0.00013698,2]
[360872977,1747092643803,-400.0,0.00013698,2]
[360872978,1747092643812,-2542.83145019,0.00013698,2]
[360872979,1747092643868,-3610.47854981,0.00013698,2]
[360872980,1747092643877,-505.59,0.00013698,2]
[360872981,1747092643887,-400.0,0.00013698,2]
[360872982,1747092643895,-623.13,0.00013698,2]
[360872983,1747092643904,-760.36,0.00013698,2]
[360872984,1747092643913,-449.0,0.00013698,2]
[360872985,1747092643923,-400.0,0.00013698,2]
[360872986,1747092643932,-400.0,0.00013698,2]
[360872987,1747092643941,-400.0,0.00013698,2]
[360872988,1747092643950,-796.65,0.00013698,2]
[360872989,1747092643960,-400.0,0.00013698,2]
[360872990,1747092643969,-1320.99,0.00013698,2]
[360872991,1747092643978,-45.56295037,0.00013698,2]
[360872994,1747092645794,-3010.22088828,0.00013698,2]
[360872995,1747092645807,-3978.34616135,0.00013698,2]
[360872996,1747092645817,-400.0,0.00013698,2]
[360872997,1747092645827,-400.0,0.00013698,2]
[360872998,1747092645836,-400.0,0.00013698,2]
[360872999,1747092645846,-1416.19,0.00013698,2]
[360873000,1747092645856,-400.0,0.00013698,2]
[360873001,1747092645866,-457.0,0.00013698,2]
[360873002,1747092645876,-1412.86,0.00013698,2]
[360873003,1747092645885,-880.71,0.00013698,2]
[360873004,1747092645895,-741.1,0.00013698,2]
[360873005,1747092645904,-996.66,0.00013698,2]
[360873006,1747092645913,-400.0,0.00013698,2]
[360873007,1747092645922,-409.81700341,0.00013698,2]
[360873008,1747092645934,-590.18299659,0.00013698,2]
[360873009,1747092645943,-400.0,0.00013698,2]
[360873010,1747092645953,-244.8057991,0.00013698,2]
[360873011,1747092645962,-34.76063791,0.00013698,2]
[360873012,1747092646066,-365.23936209,0.00013698,2]
[360873013,1747092646075,-219.07993161,0.00013698,2]
[360873014,1747092646085,-50.08070631,0.00013698,2]
[360873015,1747092646096,-349.91929369,0.00013698,2]
[360873016,1747092646105,-436.78,0.00013698,2]
[360873017,1747092646114,-168.30070631,0.00013698,2]
[360873018,1747092646125,-231.69929369,0.00013698,2]
[360873019,1747092646134,-400.12858836,0.00013698,2]
[360873022,1747092646458,-29.92141164,0.00013698,2]
[360873023,1747092646468,-513.73,0.00013698,2]
[360873024,1747092646477,-400.0,0.00013698,2]
[360873025,1747092646487,-502.55,0.00013698,2]
[360873026,1747092646496,-400.0,0.00013698,2]
[360873027,1747092646505,-836.48,0.00013698,2]
[360873028,1747092646514,-1515.15,0.00013698,2]
[360873029,1747092646523,-400.0,0.00013698,2]
[360873030,1747092646534,-235.58667913,0.00013698,2]
[360873033,1747093010046,638.0,0.00028,120]
[360873034,1747093152569,-646.94192248,0.00012867,2]
[360873035,1747093152607,-223.3229939,0.00012867,2]
[360873036,1747093152639,-157.21,0.00012868,2]
[360873037,1747093152666,-200.0,0.00012868,2]
[360873038,1747093152692,-200.0,0.00012868,2]
[360873039,1747093152721,-1502.61,0.0001287,2]
[360873040,1747093152746,-200.0,0.00012968,2]
[360873041,1747093163754,-3822.16644963,0.00013598,2]
[360873042,1747093163776,-300.0,0.00013598,2]
[360873043,1747093163799,-3284.70653934,0.00013599,2]
[360873044,1747093163821,-1200.0,0.00013652,2]
[360873045,1747093163842,-170.35917614,0.00013653,2]
[360873046,1747093163864,-207.4,0.0001369,2]
[360873047,1747093163888,-15144.17295467,0.00013698,2]
[360873048,1747093163909,-400.0,0.00013698,2]
[360873049,1747093163931,-1900.52,0.00013698,2]
[360873050,1747093163953,-1023.35,0.00013698,2]
[360873051,1747093163973,-400.0,0.00013698,2]
[360873052,1747093163995,-400.0,0.00013698,2]
[360873053,1747093164016,-400.0,0.00013698,2]
[360873054,1747093164037,-400.0,0.00013698,2]
[360873055,1747093164058,-400.0,0.00013698,2]
[360873056,1747093164080,-400.0,0.00013698,2]
[360873057,1747093164100,-400.0,0.00013698,2]
[360873058,1747093164121,-520.67,0.00013698,2]
[360873059,1747093164142,-401.17,0.00013698,2]
[360873060,1747093164162,-1256.44,0.00013698,2]
[360873061,1747093164183,-470.19,0.00013698,2]
[360873062,1747093164206,-400.0,0.00013698,2]
[360873063,1747093164226,-532.62,0.00013698,2]
[360873064,1747093164248,-979.77,0.00013698,2]
[360873065,1747093164268,-400.0,0.00013698,2]
[360873066,1747093164290,-434.86,0.00013698,2]
[360873067,1747093164310,-400.0,0.00013698,2]
[360873068,1747093164330,-461.69,0.00013698,2]
[360873069,1747093164350,-400.0,0.00013698,2]
[360873070,1747093164370,-400.0,0.00013698,2]
[360873071,1747093164390,-446.44,0.00013698,2]
[360873072,1747093164410,-961.31,0.00013698,2]
[360873073,1747093164430,-400.0,0.00013698,2]
[360873074,1747093164451,-400.0,0.00013698,2]
[360873075,1747093164471,-500.0,0.00013698,2]
[360873076,1747093164494,-400.0,0.00013698,2]
[360873077,1747093164515,-400.0,0.00013698,2]
[360873078,1747093164537,-152.07996384,0.00013698,2]
[360873079,1747093394962,250.55,0.00010854,2]
[360873082,1747093628846,1860.0,0.00021999,30]
[360873234,1747093831907,-305.44,0.00012744,2]
[360873235,1747093831917,-300.0,0.00012774,2]
[360873236,1747093831927,-1200.0,0.00012774,2]
[360873237,1747093831936,-68.1869778,0.00012775,2]
[360873238,1747093831947,-131.8130222,0.00012775,2]
[360873239,1747093831957,-500.0,0.00012775,2]
[360873240,1747093831966,-500.0,0.00012775,2]
[360873241,1747093831975,-500.0,0.00012775,2]
[360873242,1747093831984,-500.0,0.00012775,2]
[360873243,1747093831993,-500.0,0.00012775,2]
[360873244,1747093832003,-500.0,0.00012775,2]
[360873245,1747093832012,-500.0,0.00012775,2]
[360873246,1747093832021,-500.0,0.00012775,2]
[360873247,1747093832030,-500.0,0.00012775,2]
[360873248,1747093832039,-500.0,0.00012775,2]
[360873249,1747093832049,-500.0,0.00012775,2]
[360873250,1747093832058,-500.0,0.00012775,2]
[360873251,1747093832067,-500.0,0.00012775,2]
[360873252,1747093832077,-500.0,0.00012775,2]
[360873253,1747093832086,-500.0,0.00012775,2]
[360873254,1747093832096,-500.0,0.00012775,2]
[360873255,1747093832105,-500.0,0.00012775,2]
[360873256,1747093832116,-500.0,0.00012775,2]
[360873257,1747093832126,-500.0,0.00012775,2]
[360873258,1747093832136,-500.0,0.00012775,2]
[360873259,1747093832146,-500.0,0.00012775,2]
[360873260,1747093832155,-500.0,0.00012775,2]
[360873261,1747093832164,-500.0,0.00012775,2]
[360873262,1747093832173,-500.0,0.00012775,2]
[360873264,1747093832183,-500.0,0.00012775,2]
[360873265,1747093832192,-500.0,0.00012775,2]
[360873266,1747093832201,-500.0,0.00012775,2]
[360873267,1747093832210,-500.0,0.00012775,2]
[360873268,1747093832219,-500.0,0.00012775,2]
[360873269,1747093832229,-51.0756227,0.00012775,2]
[360873270,1747093832242,-448.9243773,0.00012775,2]
[360873271,1747093832252,-500.0,0.00012775,2]
[360873272,1747093832262,-500.0,0.00012775,2]
[360873273,1747093832271,-500.0,0.00012775,2]
[360873274,1747093832281,-500.0,0.00012775,2]
[360873275,1747093832290,-46.27562271,0.00012775,2]
[360873276,1747093832306,-453.72437729,0.00012775,2]
[360873277,1747093832315,-147.16155035,0.00012775,2]
[360873278,1747093832326,-356.64775514,0.00012775,2]
[360873279,1747093832335,-500.0,0.00012775,2]
[360873280,1747093832345,-500.0,0.00012775,2]
[360873282,1747093832354,-500.0,0.00012775,2]
[360873284,1747093832364,-500.0,0.00012775,2]
[360873286,1747093832373,-500.0,0.00012775,2]
[360873287,1747093832382,-500.0,0.00012775,2]
[360873290,1747093832391,-500.0,0.00012775,2]
[360873291,1747093832400,-500.0,0.00012775,2]
[360873293,1747093832409,-500.0,0.00012775,2]
[360873295,1747093832419,-500.0,0.00012775,2]
[360873297,1747093832428,-500.0,0.00012775,2]
[360873299,1747093832437,-500.0,0.00012775,2]
[360873301,1747093832446,-500.0,0.00012775,2]
[360873303,1747093832455,-500.0,0.00012775,2]
[360873305,1747093832463,-500.0,0.00012775,2]
[360873307,1747093832473,-500.0,0.00012775,2]
[360873309,1747093832482,-500.0,0.00012775,2]
[360873311,1747093832491,-500.0,0.00012775,2]
[360873313,1747093832500,-500.0,0.00012775,2]
[360873315,1747093832509,-500.0,0.00012775,2]
[360873317,1747093832518,-500.0,0.00012775,2]
[360873319,1747093832527,-460.52894475,0.00012775,2]
[360873322,1747093832546,-39.47105525,0.00012775,2]
[360873324,1747093832555,-500.0,0.00012775,2]
[360873326,1747093832564,-500.0,0.00012775,2]
[360873328,1747093832574,-500.0,0.00012775,2]
[360873330,1747093832583,-500.0,0.00012775,2]
[360873332,1747093832592,-354.3516053,0.00012775,2]
[360873335,1747093832614,-145.6483947,0.00012775,2]
[360873337,1747093832623,-500.0,0.00012775,2]
[360873339,1747093832632,-500.0,0.00012775,2]
[360873341,1747093832641,-500.0,0.00012775,2]
[360873343,1747093832651,-500.0,0.00012775,2]
[360873345,1747093832659,-500.0,0.00012775,2]
[360873347,1747093832668,-500.0,0.00012775,2]
[360873349,1747093832678,-500.0,0.00012775,2]
[360873351,1747093832687,-500.0,0.00012775,2]
[360873353,1747093832696,-500.0,0.00012775,2]
[360873355,1747093832706,-500.0,0.00012775,2]
[360873357,1747093832715,-500.0,0.00012775,2]
[360873359,1747093832724,-235.0,0.00012775,2]
[360873361,1747093832733,-500.0,0.00012775,2]
[360873363,1747093832743,-500.0,0.00012775,2]
[360873365,1747093832752,-500.0,0.00012775,2]
[360873367,1747093832762,-200.0,0.00012778,2]
[360873369,1747093832771,-1000.0,0.00012779,2]
[360873371,1747093832780,-250.55,0.00013118,2]
[360873373,1747093832789,-2974.65273203,0.00013598,2]
[360873375,1747093832798,-170.35917614,0.00013599,2]
[360873377,1747093832807,-170.64077926,0.00013653,2]
[360873379,1747093832816,-500.0,0.00013673,2]
[360873381,1747093832825,-266.26038417,0.00013673,2]
[360873383,1747093832842,-233.73961583,0.00013673,2]
[360873385,1747093832852,-500.0,0.00013673,2]
[360873387,1747093832861,-501.86052438,0.00013673,2]
[360873389,1747093832871,-500.0,0.00013673,2]
[360873391,1747093832881,-182.70800656,0.00013673,2]
[360873393,1747093832892,-317.29199344,0.00013673,2]
[360873395,1747093832902,-207.4,0.0001369,2]
[360873397,1747093832912,-1985.93,0.0001369,2]
[360873399,1747093832922,-177.09590362,0.00013698,2]
[360873836,1747093837955,-149.40037454,0.00013698,2]
[360873838,1747093837964,-729.80304862,0.00013698,2]
[360873840,1747093837977,-3983.94222946,0.00013698,2]
[360873842,1747093837988,-5835.97264118,0.00013698,2]
[360873844,1747093838000,-2060.18,0.00013698,2]
[360873848,1747093838035,-1460.62354519,0.00013698,2]
[360873851,1747093838120,-437.342,0.00013698,2]
[360873852,1747093838132,-7712.17046186,0.00013698,2]
[360873853,1747093838143,-2428.61955236,0.00013698,2]
[360873858,1747093840035,-4722.518538,0.00013698,2]
[360873859,1747093840047,-375.57917681,0.00013698,2]
[360873861,1747093840151,-17446.44801661,0.00013698,2]
[360873862,1747093840162,-2577.20000001,0.00013698,2]
[360873863,1747093840210,-2115.33182775,0.00013698,2]
[360873864,1747093840401,-153987.91985832,0.00013698,2]
[360873865,1747093840411,-10074.975236,0.00013698,2]
[360873866,1747093840420,-200.0,0.00013698,2]
[360873867,1747093840430,-400.0,0.00013698,2]
[360873868,1747093840439,-400.0,0.00013698,2]
[360873869,1747093840448,-400.0,0.00013698,2]
[360873871,1747093840458,-400.0,0.00013698,2]
[360873873,1747093840467,-445.81,0.00013698,2]
[360873875,1747093840477,-400.0,0.00013698,2]
[360873877,1747093840486,-400.0,0.00013698,2]
[360873879,1747093840495,-400.0,0.00013698,2]
[360873881,1747093840504,-400.0,0.00013698,2]
[360873883,1747093840513,-400.0,0.00013698,2]
[360873885,1747093840522,-400.0,0.00013698,2]
[360873887,1747093840531,-215.49300907,0.00013698,2]
[360873889,1747093840540,-400.0,0.00013698,2]
[360873890,1747093840549,-400.0,0.00013698,2]
[360873892,1747093840559,-400.0,0.00013698,2]
[360873894,1747093840568,-400.0,0.00013698,2]
[360873896,1747093840577,-400.0,0.00013698,2]
[360873898,1747093840586,-164.86799217,0.00013698,2]
[360873900,1747093840595,-530.18658451,0.00013698,2]
[360873902,1747093840604,-400.0,0.00013698,2]
[360873904,1747093840613,-432.13,0.00013698,2]
[360873906,1747093840622,-400.0,0.00013698,2]
[360873908,1747093840631,-481.91299856,0.00013698,2]
[360873910,1747093840640,-174.54192411,0.00013698,2]
[360873912,1747093840651,-635.13,0.00013698,2]
[360873913,1747093840660,-1000.0,0.00013698,2]
[360873914,1747093840669,-1177.285,0.00013698,2]
[360873916,1747093840678,-160.35562181,0.00013698,2]
[360873918,1747093840687,-400.0,0.00013698,2]
[360873920,1747093840697,-400.0,0.00013698,2]
[360873922,1747093840706,-400.0,0.00013698,2]
[360873924,1747093840715,-400.0,0.00013698,2]
[360873926,1747093840724,-400.0,0.00013698,2]
[360873928,1747093840733,-400.0,0.00013698,2]
[360873930,1747093840742,-400.0,0.00013698,2]
[360873932,1747093840751,-266.22588349,0.00013698,2]
[360873934,1747093840760,-400.0,0.00013698,2]
[360873936,1747093840770,-500.0,0.00013698,2]
[360873938,1747093840779,-400.0,0.00013698,2]
[360873939,1747093840788,-400.0,0.00013698,2]
[360873941,1747093840797,-400.0,0.00013698,2]
[360873943,1747093840806,-400.0,0.00013698,2]
[360873945,1747093840815,-400.0,0.00013698,2]
[360873947,1747093840825,-400.0,0.00013698,2]
[360873949,1747093840834,-573.23,0.00013698,2]
[360873951,1747093840846,-400.0,0.00013698,2]
[360873953,1747093840855,-400.0,0.00013698,2]
[360873955,1747093840864,-400.0,0.00013698,2]
[360873957,1747093840874,-400.0,0.00013698,2]
[360873959,1747093840885,-400.0,0.00013698,2]
[360873961,1747093840895,-400.0,0.00013698,2]
[360873963,1747093840905,-400.0,0.00013698,2]
[360873964,1747093840914,-400.0,0.00013698,2]
[360873966,1747093840925,-400.0,0.00013698,2]
[360873968,1747093840935,-400.0,0.00013698,2]
[360873970,1747093840944,-400.0,0.00013698,2]
[360873972,1747093840954,-609.58,0.00013698,2]
[360873974,1747093840963,-420.57,0.00013698,2]
[360873976,1747093840973,-400.0,0.00013698,2]
[360873978,1747093840982,-400.0,0.00013698,2]
[360873980,1747093840991,-776.07,0.00013698,2]
[360873982,1747093841000,-400.0,0.00013698,2]
[360873984,1747093841009,-400.0,0.00013698,2]
[360873986,1747093841018,-639.82,0.00013698,2]
[360873988,1747093841028,-400.0,0.00013698,2]
[360873990,1747093841037,-400.0,0.00013698,2]
[360873992,1747093841046,-542.21,0.00013698,2]
[360873994,1747093841056,-400.0,0.00013698,2]
[360873996,1747093841065,-400.0,0.00013698,2]
[360873998,1747093841074,-400.0,0.00013698,2]
[360873999,1747093841084,-400.0,0.00013698,2]
[360874001,1747093841095,-400.0,0.00013698,2]
[360874003,1747093841104,-400.0,0.00013698,2]
[360874005,1747093841113,-195.36,0.00013698,2]
[360874007,1747093841123,-400.0,0.00013698,2]
[360874009,1747093841133,-638.48,0.00013698,2]
[360874011,1747093841143,-400.0,0.00013698,2]
[360874013,1747093841152,-746.09,0.00013698,2]
[360874015,1747093841161,-673.43,0.00013698,2]
[360874017,1747093841171,-501.73368094,0.00013698,2]
[360874019,1747093841180,-400.0,0.00013698,2]
[360874021,1747093841189,-400.0,0.00013698,2]
[360874023,1747093841199,-400.0,0.00013698,2]
[360874025,1747093841208,-400.0,0.00013698,2]
[360874027,1747093841217,-400.0,0.00013698,2]
[360874029,1747093841226,-400.0,0.00013698,2]
[360874030,1747093841235,-450.0,0.00013698,2]
[360874033,1747093841248,-400.0,0.00013698,2]
[360874035,1747093841257,-400.0,0.00013698,2]
[360874037,1747093841267,-400.0,0.00013698,2]
[360874039,1747093841276,-400.0,0.00013698,2]
[360874041,1747093841285,-400.0,0.00013698,2]
[360874043,1747093841294,-400.0,0.00013698,2]
[360874045,1747093841304,-424.83,0.00013698,2]
[360874046,1747093841314,-400.0,0.00013698,2]
[360874048,1747093841323,-400.0,0.00013698,2]
[360874050,1747093841333,-400.0,0.00013698,2]
[360874052,1747093841342,-400.0,0.00013698,2]
[360874054,1747093841351,-400.0,0.00013698,2]
[360874056,1747093841360,-412.15710667,0.00013698,2]
[360874058,1747093841369,-400.0,0.00013698,2]
[360874060,1747093841379,-400.0,0.00013698,2]
[360874062,1747093841388,-400.0,0.00013698,2]
[360874064,1747093841397,-400.0,0.00013698,2]
[360874066,1747093841407,-400.0,0.00013698,2]
[360874068,1747093841416,-400.0,0.00013698,2]
[360874070,1747093841426,-400.0,0.00013698,2]
[360874072,1747093841435,-302.86993152,0.00013698,2]
[360874074,1747093841445,-400.0,0.00013698,2]
[360874076,1747093841454,-400.0,0.00013698,2]
[360874078,1747093841463,-400.0,0.00013698,2]
[360874080,1747093841472,-400.0,0.00013698,2]
[360874082,1747093841481,-400.0,0.00013698,2]
[360874084,1747093841490,-400.0,0.00013698,2]
[360874086,1747093841499,-400.0,0.00013698,2]
[360874088,1747093841508,-400.0,0.00013698,2]
[360874089,1747093841518,-400.0,0.00013698,2]
[360874091,1747093841527,-400.0,0.00013698,2]
[360874093,1747093841536,-300.49322351,0.00013698,2]
[360874095,1747093841545,-400.0,0.00013698,2]
[360874097,1747093841554,-400.0,0.00013698,2]
[360874099,1747093841568,-400.0,0.00013698,2]
[360874100,1747093841576,-400.0,0.00013698,2]